lending/lending_fUSD_20250114
["ID","MTS","AMOUNT","RATE_DAILY","PERIOD"]
[348944485,1736884237547,-500.0,0.00010784,2]
[348944486,1736884237557,-500.0,0.00010784,2]
[348944487,1736884237567,-500.0,0.00010784,2]
[348944488,1736884237576,-500.0,0.00010784,2]
[348944489,1736884237585,-500.0,0.00010784,2]
[348944490,1736884237594,-913.12,0.00010784,2]
[348944491,1736884237603,-2723.17,0.00010784,2]
[348944492,1736884237613,-1348.71,0.00010784,2]
[348944493,1736884237622,-984.87,0.00010784,2]
[348944494,1736884237631,-879.24,0.00010784,2]
[348944495,1736884237642,-500.0,0.00010784,2]
[348944496,1736884237651,-1223.09,0.00010784,2]
[348944497,1736884237661,-508.57,0.00010784,2]
[348944498,1736884237670,-571.87,0.00010784,2]
[348944499,1736884237680,-159.16570207,0.00010785,2]
[348944500,1736884237689,-500.0,0.00010807,2]
[348944501,1736884237698,-500.0,0.00010807,2]
[348944502,1736884237708,-500.0,0.00010807,2]
[348944503,1736884237720,-501.32,0.00010815,2]
[348944504,1736884237730,-594.78,0.00010815,2]
[348944505,1736884237741,-500.0,0.00010815,2]
[348944506,1736884237751,-605.19,0.00010815,2]
[348944507,1736884237760,-500.0,0.00010815,2]
[348944508,1736884237770,-500.0,0.00010815,2]
[348944509,1736884237780,-455.785316,0.00010816,2]
[348944510,1736884237790,-500.0,0.00010816,2]
[348944511,1736884237799,-500.0,0.00010816,2]
[348944512,1736884237809,-500.0,0.00010816,2]
[348944513,1736884237818,-2216.07,0.00010816,2]
[348944514,1736884237827,-723.94,0.00010816,2]
[348944515,1736884237837,-500.0,0.00010816,2]
[348944516,1736884237847,-1384.06,0.00010816,2]
[348944517,1736884237857,-500.0,0.00010816,2]
[348944518,1736884237867,-323.23953185,0.00010816,2]
[348944521,1736884237876,-500.0,0.00010816,2]
[348944523,1736884237886,-564.89,0.00010816,2]
[348944524,1736884237896,-808.36,0.00010816,2]
[348944526,1736884237906,-589.48,0.00010816,2]
[348944528,1736884237915,-1540.29,0.00010816,2]
[348944530,1736884237926,-500.0,0.00010816,2]
[348944532,1736884237936,-691.76,0.00010816,2]
[348944534,1736884237946,-758.11,0.00010816,2]
[348944535,1736884237955,-500.0,0.00010816,2]
[348944536,1736884237964,-500.0,0.00010816,2]
[348944538,1736884237974,-500.0,0.00010816,2]
[348944539,1736884237983,-500.0,0.00010816,2]
[348944540,1736884237993,-1700.66,0.00010816,2]
[348944541,1736884238002,-500.0,0.00010816,2]
[348944542,1736884238012,-1044.48,0.00010816,2]
[348944543,1736884238021,-500.0,0.00010816,2]
[348944544,1736884238030,-500.0,0.00010816,2]
[348944545,1736884238039,-500.0,0.00010816,2]
[348944546,1736884238048,-1899.5,0.00010816,2]
[348944547,1736884238058,-500.0,0.00010816,2]
[348944548,1736884238067,-500.0,0.00010816,2]
[348944549,1736884238077,-500.0,0.00010816,2]
[348944550,1736884238087,-946.61,0.00010816,2]
[348944551,1736884238096,-431.65479114,0.00010816,2]
[348944552,1736884238108,-500.0,0.00010816,2]
[348944553,1736884238118,-500.0,0.00010816,2]
[348944554,1736884238128,-500.0,0.00010816,2]
[348944555,1736884238137,-500.0,0.00010816,2]
[348944556,1736884238147,-2097.77,0.00010816,2]
[348944557,1736884238156,-500.0,0.00010816,2]
[348944558,1736884238166,-500.0,0.00010816,2]
[348944559,1736884238175,-500.0,0.00010816,2]
[348944560,1736884238186,-500.0,0.00010816,2]
[348944561,1736884238196,-500.0,0.00010816,2]
[348944564,1736884238380,-500.0,0.00010816,2]
[348944566,1736884238391,-500.0,0.00010816,2]
[348944568,1736884238402,-500.0,0.00010816,2]
[348944569,1736884238413,-4603.49,0.00010816,2]
[348944570,1736884238423,-1135.65,0.00010816,2]
[348944572,1736884238432,-537.64,0.00010816,2]
[348944573,1736884238442,-500.0,0.00010816,2]
[348944574,1736884238452,-500.0,0.00010816,2]
[348944575,1736884238462,-500.0,0.00010816,2]
[348944576,1736884238472,-2066.2,0.00010816,2]
[348944577,1736884238482,-500.0,0.00010816,2]
[348944578,1736884238492,-500.0,0.00010816,2]
[348944579,1736884238501,-500.0,0.00010816,2]
[348944580,1736884238511,-468.36353469,0.00010816,2]
[348944581,1736884238521,-500.0,0.00010816,2]
[348944582,1736884238531,-500.0,0.00010816,2]
[348944583,1736884238541,-500.0,0.00010816,2]
[348944584,1736884238551,-500.0,0.00010816,2]
[348944585,1736884238560,-699.97,0.00010816,2]
[348944586,1736884238570,-500.0,0.00010816,2]
[348944587,1736884238579,-500.0,0.00010816,2]
[348944588,1736884238589,-500.0,0.00010816,2]
[348944589,1736884238600,-500.0,0.00010816,2]
[348944590,1736884238610,-500.0,0.00010816,2]
[348944591,1736884238621,-500.0,0.00010816,2]
[348944592,1736884238631,-500.0,0.00010816,2]
[348944593,1736884238641,-500.0,0.00010816,2]
[348944594,1736884238651,-500.0,0.00010816,2]
[348944595,1736884238661,-500.0,0.00010816,2]
[348944596,1736884238671,-500.0,0.00010816,2]
[348944597,1736884238680,-500.0,0.00010816,2]
[348944598,1736884238690,-500.0,0.00010816,2]
[348944599,1736884238700,-500.0,0.00010816,2]
[348944600,1736884238709,-539.46,0.00010816,2]
[348944601,1736884238720,-500.0,0.00010816,2]
[348944602,1736884238731,-500.0,0.00010816,2]
[348944603,1736884238740,-500.0,0.00010816,2]
[348944604,1736884238752,-500.0,0.00010816,2]
[348944605,1736884238762,-500.0,0.00010816,2]
[348944606,1736884238772,-500.0,0.00010816,2]
[348944607,1736884238783,-500.0,0.00010816,2]
[348944608,1736884238793,-500.0,0.00010816,2]
[348944609,1736884238802,-500.0,0.00010816,2]
[348944610,1736884238813,-500.0,0.00010816,2]
[348944611,1736884238823,-500.0,0.00010816,2]
[348944612,1736884238833,-500.0,0.00010816,2]
[348944613,1736884238845,-500.0,0.00010816,2]
[348944614,1736884238856,-500.0,0.00010816,2]
[348944615,1736884238866,-500.0,0.00010816,2]
[348944616,1736884238878,-500.0,0.00010816,2]
[348944617,1736884238891,-1515.7,0.00010816,2]
[348944618,1736884238900,-500.0,0.00010816,2]
[348944619,1736884238910,-1048.86,0.00010816,2]
[348944620,1736884238919,-500.0,0.00010816,2]
[348944621,1736884238929,-500.0,0.00010816,2]
[348944622,1736884238939,-500.0,0.00010816,2]
[348944623,1736884238948,-500.0,0.00010816,2]
[348944624,1736884238958,-500.0,0.00010816,2]
[348944625,1736884238967,-500.0,0.00010816,2]
[348944626,1736884238977,-500.0,0.00010816,2]
[348944627,1736884238988,-500.0,0.00010816,2]
[348944628,1736884238998,-585.39,0.00010816,2]
[348944629,1736884239007,-500.0,0.00010816,2]
[348944630,1736884239017,-563.15,0.00010816,2]
[348944631,1736884239026,-500.0,0.00010816,2]
[348944632,1736884239037,-500.0,0.00010816,2]
[348944633,1736884239047,-1880.48,0.00010816,2]
[348944634,1736884239056,-909.06,0.00010816,2]
[348944635,1736884239066,-811.44,0.00010816,2]
[348944636,1736884239075,-500.0,0.00010816,2]
[348944637,1736884239085,-500.0,0.00010816,2]
[348944638,1736884239094,-525.25,0.00010816,2]
[348944639,1736884239107,-500.0,0.00010816,2]
[348944640,1736884239118,-500.0,0.00010816,2]
[348944641,1736884239129,-500.0,0.00010816,2]
[348944642,1736884239141,-740.43,0.00010816,2]
[348944643,1736884239152,-1330.62,0.00010816,2]
[348944644,1736884239161,-500.0,0.00010816,2]
[348944645,1736884239171,-722.54,0.00010816,2]
[348944646,1736884239184,-500.0,0.00010816,2]
[348944647,1736884239195,-3602.55,0.00010816,2]
[348944648,1736884239207,-514.64,0.00010816,2]
[348944649,1736884239217,-581.44,0.00010816,2]
[348944650,1736884239228,-500.0,0.00010816,2]
[348944651,1736884239237,-500.0,0.00010816,2]
[348944652,1736884239247,-500.0,0.00010816,2]
[348944653,1736884239256,-500.0,0.00010816,2]
[348944654,1736884239265,-500.0,0.00010816,2]
[348944655,1736884239274,-990.12,0.00010816,2]
[348944656,1736884239284,-500.0,0.00010816,2]
[348944657,1736884239294,-653.38,0.00010816,2]
[348944658,1736884239303,-639.66,0.00010816,2]
[348944659,1736884239313,-540.02,0.00010816,2]
[348944660,1736884239323,-584.48,0.00010816,2]
[348944661,1736884239332,-500.0,0.00010816,2]
[348944662,1736884239342,-500.0,0.00010816,2]
[348944663,1736884239352,-500.0,0.00010816,2]
[348944664,1736884239361,-500.0,0.00010816,2]
[348944665,1736884239371,-500.0,0.00010816,2]
[348944666,1736884239380,-1023.83,0.00010816,2]
[348944667,1736884239390,-889.74,0.00010816,2]
[348944668,1736884239400,-500.0,0.00010816,2]
[348944669,1736884239409,-500.0,0.00010816,2]
[348944670,1736884239419,-500.0,0.00010816,2]
[348944671,1736884239428,-1129.5,0.00010816,2]
[348944672,1736884239438,-507.90148192,0.00010816,2]
[348944673,1736884239448,-500.0,0.00010816,2]
[348944674,1736884239458,-500.0,0.00010816,2]
[348944675,1736884239468,-1106.92,0.00010816,2]
[348944676,1736884239478,-500.0,0.00010816,2]
[348944677,1736884239488,-500.0,0.00010816,2]
[348944678,1736884239498,-500.0,0.00010816,2]
[348944679,1736884239508,-1862.63,0.00010816,2]
[348944680,1736884239517,-1415.62,0.00010816,2]
[348944681,1736884239526,-1000.0,0.00010816,2]
[348944682,1736884239538,-743.83,0.00010816,2]
[348944683,1736884239548,-1024.64,0.00010816,2]
[348944684,1736884239557,-1711.45,0.00010816,2]
[348944685,1736884239567,-836.06,0.00010816,2]
[348944686,1736884239576,-500.0,0.00010816,2]
[348944687,1736884239586,-665.94,0.00010816,2]
[348944688,1736884239598,-781.3,0.00010816,2]
[348944689,1736884239610,-500.0,0.00010816,2]
[348944690,1736884239620,-1568.75,0.00010816,2]
[348944691,1736884239631,-921.86,0.00010816,2]
[348944692,1736884239644,-500.0,0.00010816,2]
[348944693,1736884239654,-1240.47,0.00010816,2]
[348944694,1736884239664,-2387.93,0.00010816,2]
[348944695,1736884239674,-500.0,0.00010816,2]
[348944696,1736884239683,-1509.37,0.00010816,2]
[348944697,1736884239693,-1285.2,0.00010816,2]
[348944698,1736884239704,-612.010858,0.00010816,2]
[348944699,1736884239714,-842.34,0.00010816,2]
[348944700,1736884239725,-630.89,0.00010816,2]
[348944701,1736884239735,-817.27,0.00010816,2]
[348944702,1736884239745,-837.5,0.00010816,2]
[348944703,1736884239755,-500.0,0.00010816,2]
[348944704,1736884239764,-1034.39,0.00010817,2]
[348944705,1736884239775,-500.0,0.00010838,2]
[348944706,1736884239784,-159.16570207,0.00010854,2]
[348944707,1736884239794,-1855.10270085,0.000109,2]
[348944708,1736884239803,-159.16570207,0.00010923,2]
[348944709,1736884239813,-150.0,0.00010959,2]
[348944710,1736884239823,-159.16570207,0.00010991,2]
[348944711,1736884239832,-500.0,0.00010999,2]
[348944712,1736884239842,-500.0,0.00010999,2]
[348944713,1736884239852,-500.0,0.00010999,2]
[348944714,1736884239861,-105303.33542901,0.00011,2]
[348944715,1736884239871,-550.0,0.00011,2]
[348944716,1736884239881,-1915.166,0.00011,2]
[348944717,1736884239891,-500.0,0.00011054,2]
[348944718,1736884239901,-500.0,0.00011054,2]
[348944719,1736884239910,-500.0,0.00011054,2]
[348944720,1736884239920,-500.0,0.00011054,2]
[348944721,1736884239929,-500.0,0.00011054,2]
[348944723,1736884239939,-500.0,0.00011054,2]
[348944725,1736884239949,-500.0,0.00011054,2]
[348944727,1736884239958,-423.72,0.00011054,2]
[348944728,1736884239967,-500.0,0.00011054,2]
[348944729,1736884239977,-500.0,0.00011054,2]
[348944730,1736884239987,-500.0,0.00011054,2]
[348944731,1736884239997,-500.0,0.00011054,2]
[348944732,1736884240006,-500.0,0.00011054,2]
[348944733,1736884240015,-500.0,0.00011054,2]
[348944734,1736884240025,-500.0,0.00011054,2]
[348944735,1736884240034,-500.0,0.00011054,2]
[348944736,1736884240043,-500.0,0.00011054,2]
[348944737,1736884240053,-500.0,0.00011054,2]
[348944738,1736884240063,-500.0,0.00011054,2]
[348944739,1736884240073,-500.0,0.00011054,2]
[348944741,1736884240082,-500.0,0.00011054,2]
[348944742,1736884240092,-500.0,0.00011054,2]
[348944743,1736884240105,-500.0,0.00011054,2]
[348944744,1736884240114,-500.0,0.00011054,2]
[348944745,1736884240124,-537.16,0.00011054,2]
[348944746,1736884240133,-500.0,0.00011054,2]
[348944747,1736884240145,-572.00993983,0.00011054,2]
[348944748,1736884240155,-500.0,0.00011054,2]
[348944749,1736884240165,-247.32127929,0.00011054,2]
[348944750,1736884240176,-500.0,0.00011054,2]
[348944751,1736884240185,-500.0,0.00011054,2]
[348944752,1736884240195,-500.0,0.00011054,2]
[348944753,1736884240205,-500.0,0.00011054,2]
[348944754,1736884240215,-500.0,0.00011054,2]
[348944755,1736884240224,-500.0,0.00011054,2]
[348944756,1736884240234,-500.0,0.00011054,2]
[348944757,1736884240244,-500.0,0.00011054,2]
[348944758,1736884240255,-500.0,0.00011054,2]
[348944759,1736884240264,-631.2,0.00011054,2]
[348944760,1736884240274,-500.0,0.00011054,2]
[348944761,1736884240283,-500.0,0.00011054,2]
[348944762,1736884240293,-499.64721572,0.00011054,2]
[348944763,1736884240302,-500.0,0.00011054,2]
[348944764,1736884240312,-500.0,0.00011054,2]
[348944765,1736884240322,-500.0,0.00011054,2]
[348944766,1736884240331,-500.0,0.00011054,2]
[348944767,1736884240341,-500.0,0.00011054,2]
[348944768,1736884240351,-500.0,0.00011054,2]
[348944769,1736884240360,-2619.92,0.00011054,2]
[348944770,1736884240369,-500.0,0.00011054,2]
[348944771,1736884240378,-500.0,0.00011054,2]
[348944772,1736884240388,-500.0,0.00011054,2]
[348944773,1736884240399,-500.0,0.00011054,2]
[348944774,1736884240409,-500.0,0.00011054,2]
[348944775,1736884240418,-500.0,0.00011054,2]
[348944776,1736884240428,-1771.76,0.00011054,2]
[348944777,1736884240437,-500.0,0.00011054,2]
[348944778,1736884240447,-500.0,0.00011054,2]
[348944779,1736884240457,-500.0,0.00011054,2]
[348944780,1736884240466,-500.0,0.00011054,2]
[348944781,1736884240475,-500.0,0.00011054,2]
[348944782,1736884240485,-500.0,0.00011054,2]
[348944783,1736884240495,-500.0,0.00011054,2]
[348944784,1736884240505,-1944.06,0.00011054,2]
[348944785,1736884240515,-500.0,0.00011054,2]
[348944786,1736884240524,-500.0,0.00011054,2]
[348944787,1736884240534,-500.0,0.00011057,2]
[348944788,1736884240543,-570.54,0.00011057,2]
[348944790,1736884240553,-500.0,0.00011058,2]
[348944792,1736884240563,-500.0,0.00011058,2]
[348944794,1736884240572,-503.95624794,0.00011058,2]
[348944795,1736884240582,-158.79810924,0.00011058,2]
[348944796,1736884240591,-500.0,0.00011058,2]
[348944797,1736884240602,-913.12,0.00011058,2]
[348944798,1736884240611,-2723.17,0.00011058,2]
[348944800,1736884240620,-1348.71,0.00011058,2]
[348944801,1736884240630,-984.87,0.00011058,2]
[348944803,1736884240639,-879.24,0.00011058,2]
[348944805,1736884240649,-500.0,0.00011058,2]
[348944807,1736884240658,-1223.09,0.00011058,2]
[348944809,1736884240667,-508.57,0.00011058,2]
[348944811,1736884240676,-571.87,0.00011058,2]
[348944813,1736884240686,-159.16570207,0.0001106,2]
[348944815,1736884240695,-500.0,0.00011081,2]
[348944817,1736884240704,-500.0,0.00011081,2]
[348944819,1736884240715,-500.0,0.00011081,2]
[348944821,1736884240726,-3259.79,0.00011088,2]
[348944823,1736884240736,-500.0,0.00011089,2]
[348944825,1736884240745,-501.32,0.00011089,2]
[348944827,1736884240755,-500.0,0.00011089,2]
[348944829,1736884240765,-594.78,0.00011089,2]
[348944831,1736884240774,-259.90449112,0.00011089,2]
[348944838,1736884240835,-500.0,0.00011089,2]
[348944840,1736884240845,-605.19,0.00011089,2]
[348944842,1736884240854,-500.0,0.00011089,2]
[348944844,1736884240866,-455.785316,0.0001109,2]
[348944846,1736884240875,-500.0,0.0001109,2]
[348944848,1736884240884,-500.0,0.0001109,2]
[348944850,1736884240895,-2216.07,0.0001109,2]
[348944852,1736884240904,-723.94,0.0001109,2]
[348944854,1736884240914,-500.0,0.0001109,2]
[348944856,1736884240924,-1384.06,0.0001109,2]
[348944858,1736884240934,-500.0,0.0001109,2]
[348944861,1736884240944,-500.0,0.0001109,2]
[348944862,1736884240953,-564.89,0.0001109,2]
[348944864,1736884240963,-808.36,0.0001109,2]
[348944866,1736884240972,-589.48,0.0001109,2]
[348944868,1736884240982,-1540.29,0.0001109,2]
[348944870,1736884240992,-500.0,0.0001109,2]
[348944873,1736884241002,-691.76,0.0001109,2]
[348944875,1736884241011,-758.11,0.0001109,2]
[348944876,1736884241020,-500.0,0.0001109,2]
[348944878,1736884241030,-1700.66,0.0001109,2]
[348944880,1736884241040,-500.0,0.0001109,2]
[348944882,1736884241049,-1044.48,0.0001109,2]
[348944884,1736884241058,-500.0,0.0001109,2]
[348944886,1736884241067,-500.0,0.0001109,2]
[348944888,1736884241077,-1899.5,0.0001109,2]
[348944889,1736884241086,-500.0,0.0001109,2]
[348944890,1736884241095,-500.0,0.0001109,2]
[348944891,1736884241108,-946.61,0.0001109,2]
[348944892,1736884241117,-500.0,0.0001109,2]
[348944893,1736884241126,-500.0,0.0001109,2]
[348944894,1736884241136,-2097.77,0.0001109,2]
[348944895,1736884241147,-500.0,0.0001109,2]
[348944896,1736884241157,-500.0,0.0001109,2]
[348944897,1736884241166,-500.0,0.0001109,2]
[348944898,1736884241176,-500.0,0.0001109,2]
[348944899,1736884241186,-500.0,0.0001109,2]
[348944900,1736884241195,-549.42027639,0.0001109,2]
[348944901,1736884241204,-4603.49,0.0001109,2]
[348944903,1736884241213,-1135.65,0.0001109,2]
[348944905,1736884241222,-537.64,0.0001109,2]
[348944907,1736884241231,-500.0,0.0001109,2]
[348944909,1736884241240,-500.0,0.0001109,2]
[348944911,1736884241249,-2066.2,0.0001109,2]
[348944912,1736884241258,-500.0,0.0001109,2]
[348944914,1736884241267,-500.0,0.0001109,2]
[348944916,1736884241276,-500.0,0.0001109,2]
[348944918,1736884241285,-500.0,0.0001109,2]
[348944920,1736884241295,-303.36191034,0.0001109,2]
[348944922,1736884241304,-500.0,0.0001109,2]
[348944924,1736884241313,-699.97,0.0001109,2]
[348944926,1736884241323,-500.0,0.0001109,2]
[348944928,1736884241333,-648.78516394,0.0001109,2]
[348944930,1736884241342,-500.0,0.0001109,2]
[348944932,1736884241351,-500.0,0.0001109,2]
[348944934,1736884241360,-500.0,0.0001109,2]
[348944936,1736884241370,-500.0,0.0001109,2]
[348944938,1736884241379,-500.0,0.0001109,2]
[348944940,1736884241388,-500.0,0.0001109,2]
[348944942,1736884241398,-500.0,0.0001109,2]
[348944944,1736884241407,-539.46,0.0001109,2]
[348944946,1736884241416,-500.0,0.0001109,2]
[348944948,1736884241425,-500.0,0.0001109,2]
[348944950,1736884241435,-500.0,0.0001109,2]
[348944952,1736884241444,-500.0,0.0001109,2]
[348944954,1736884241453,-500.0,0.0001109,2]
[348944956,1736884241462,-469.68184417,0.0001109,2]
[348944958,1736884241471,-500.0,0.0001109,2]
[348944960,1736884241481,-517.0,0.0001109,2]
[348944962,1736884241490,-500.0,0.0001109,2]
[348944964,1736884241499,-500.0,0.0001109,2]
[348944966,1736884241509,-500.0,0.0001109,2]
[348944968,1736884241518,-1515.7,0.0001109,2]
[348944970,1736884241527,-1048.86,0.0001109,2]
[348944972,1736884241536,-500.0,0.0001109,2]
[348944974,1736884241545,-500.0,0.0001109,2]
[348944976,1736884241554,-500.0,0.0001109,2]
[348944978,1736884241564,-477.72484471,0.0001109,2]
[348944980,1736884241573,-500.0,0.0001109,2]
[348944982,1736884241581,-500.0,0.0001109,2]
[348944984,1736884241591,-500.0,0.0001109,2]
[348944985,1736884241600,-585.39,0.0001109,2]
[348944987,1736884241609,-500.0,0.0001109,2]
[348944989,1736884241618,-500.0,0.0001109,2]
[348944991,1736884241627,-563.15,0.0001109,2]
[348944993,1736884241636,-500.0,0.0001109,2]
[348944995,1736884241647,-1880.48,0.0001109,2]
[348944997,1736884241656,-909.06,0.0001109,2]
[348944999,1736884241666,-811.44,0.0001109,2]
[348945001,1736884241675,-500.0,0.0001109,2]
[348945003,1736884241684,-500.0,0.0001109,2]
[348945005,1736884241693,-500.0,0.0001109,2]
[348945007,1736884241702,-525.25,0.0001109,2]
[348945009,1736884241712,-500.0,0.0001109,2]
[348945011,1736884241721,-1330.62,0.0001109,2]
[348945013,1736884241731,-740.43,0.0001109,2]
[348945015,1736884241741,-722.54,0.0001109,2]
[348945017,1736884241751,-500.0,0.0001109,2]
[348945019,1736884241760,-3602.55,0.0001109,2]
[348945021,1736884241770,-514.64,0.0001109,2]
[348945023,1736884241780,-581.44,0.0001109,2]
[348945025,1736884241789,-500.0,0.0001109,2]
[348945027,1736884241799,-500.0,0.0001109,2]
[348945029,1736884241808,-500.0,0.0001109,2]
[348945031,1736884241817,-500.0,0.0001109,2]
[348945033,1736884241827,-990.12,0.0001109,2]
[348945035,1736884241836,-500.0,0.0001109,2]
[348945037,1736884241845,-653.38,0.0001109,2]
[348945039,1736884241854,-639.66,0.0001109,2]
[348945041,1736884241863,-540.02,0.0001109,2]
[348945043,1736884241873,-584.48,0.0001109,2]
[348945045,1736884241882,-500.0,0.0001109,2]
[348945047,1736884241892,-500.0,0.0001109,2]
[348945049,1736884241901,-500.0,0.0001109,2]
[348945051,1736884241911,-500.0,0.0001109,2]
[348945053,1736884241920,-1023.83,0.0001109,2]
[348945055,1736884241929,-889.74,0.0001109,2]
[348945057,1736884241939,-1129.5,0.0001109,2]
[348945059,1736884241949,-500.0,0.0001109,2]
[348945061,1736884241958,-1106.92,0.0001109,2]
[348945063,1736884241967,-500.0,0.0001109,2]
[348945065,1736884241976,-500.0,0.0001109,2]
[348945067,1736884241986,-1862.63,0.0001109,2]
[348945069,1736884241995,-1415.62,0.0001109,2]
[348945071,1736884242005,-1000.0,0.0001109,2]
[348945073,1736884242014,-743.83,0.0001109,2]
[348945075,1736884242023,-1024.64,0.0001109,2]
[348945077,1736884242033,-1711.45,0.0001109,2]
[348945079,1736884242042,-836.06,0.0001109,2]
[348945081,1736884242051,-665.94,0.0001109,2]
[348945083,1736884242060,-500.0,0.0001109,2]
[348945085,1736884242069,-1568.75,0.0001109,2]
[348945087,1736884242078,-781.3,0.0001109,2]
[348945089,1736884242087,-921.86,0.0001109,2]
[348945091,1736884242096,-500.0,0.0001109,2]
[348945093,1736884242109,-1240.47,0.0001109,2]
[348945095,1736884242119,-2387.93,0.0001109,2]
[348945097,1736884242129,-500.0,0.0001109,2]
[348945099,1736884242138,-1509.37,0.0001109,2]
[348945101,1736884242147,-1285.2,0.0001109,2]
[348945103,1736884242156,-612.010858,0.0001109,2]
[348945105,1736884242165,-842.34,0.0001109,2]
[348945107,1736884242175,-630.89,0.0001109,2]
[348945109,1736884242184,-817.27,0.0001109,2]
[348945111,1736884242193,-837.5,0.0001109,2]
[348945113,1736884242201,-500.0,0.0001109,2]
[348945115,1736884242211,-1034.39,0.00011091,2]
[348945117,1736884242220,-778.7013354,0.00011099,2]
[348945119,1736884242229,-778.7013354,0.00011099,2]
[348945121,1736884242238,-778.7013354,0.00011099,2]
[348945123,1736884242246,-778.7013354,0.00011099,2]
[348945125,1736884242255,-159.16570207,0.00011128,2]
[348945127,1736884242264,-500.0,0.00011165,2]
[348945129,1736884242273,-429.93842545,0.00011172,2]
[348945131,1736884242282,-159.16570207,0.00011197,2]
[348945133,1736884242291,-1855.10270061,0.00011245,2]
[348945135,1736884242300,-159.16570207,0.00011266,2]
[348945137,1736884242309,-500.0,0.00011328,2]
[348945138,1736884242318,-460.25853608,0.00011328,2]
[348945140,1736884242327,-500.0,0.00011328,2]
[348945142,1736884242336,-500.0,0.00011328,2]
[348945144,1736884242345,-500.0,0.00011328,2]
[348945146,1736884242354,-500.0,0.00011328,2]
[348945148,1736884242364,-500.0,0.00011328,2]
[348945150,1736884242373,-500.0,0.00011328,2]
[348945152,1736884242382,-500.0,0.00011328,2]
[348945154,1736884242391,-500.0,0.00011328,2]
[348945156,1736884242399,-500.0,0.00011328,2]
[348945158,1736884242408,-500.0,0.00011328,2]
[348945160,1736884242417,-500.0,0.00011328,2]
[348945162,1736884242427,-500.0,0.00011328,2]
[348945164,1736884242436,-500.0,0.00011328,2]
[348945166,1736884242445,-546.53,0.00011328,2]
[348945168,1736884242454,-500.0,0.00011328,2]
[348945170,1736884242464,-500.0,0.00011328,2]
[348945172,1736884242473,-500.0,0.00011328,2]
[348945174,1736884242482,-537.16,0.00011328,2]
[348945176,1736884242491,-500.0,0.00011328,2]
[348945178,1736884242500,-500.0,0.00011328,2]
[348945180,1736884242509,-500.0,0.00011328,2]
[348945182,1736884242519,-500.0,0.00011328,2]
[348945184,1736884242528,-500.0,0.00011328,2]
[348945186,1736884242537,-500.0,0.00011328,2]
[348945188,1736884242546,-500.0,0.00011328,2]
[348945190,1736884242555,-500.0,0.00011328,2]
[348945192,1736884242564,-500.0,0.00011328,2]
[348945194,1736884242573,-500.0,0.00011328,2]
[348945196,1736884242582,-500.0,0.00011328,2]
[348945198,1736884242591,-631.2,0.00011328,2]
[348945200,1736884242600,-500.0,0.00011328,2]